bitfinex-derivatives/quotes_BTCF0:USTF0_20251120
["timestamp","ask_amount","ask_price","bid_price","bid_amount"]
[1763632641425,0.32952,91958.0,91943.0,0.03912079]
[1763632641426,0.03368,91952.0,91943.0,0.03912079]
[1763632641624,0.03368,91952.0,91934.0,0.14658907]
[1763632641625,0.22376,91935.0,91934.0,0.14658907]
[1763632641927,0.22376,91935.0,91934.0,0.22558803]
[1763632641928,0.3608,91935.0,91934.0,0.22558803]
[1763632642110,0.46656,91935.0,91934.0,0.22558803]
[1763632644711,0.46534315,91944.0,91943.0,0.22339]
[1763632644915,0.57110315,91944.0,91943.0,0.22558803]
[1763632645423,0.57110315,91944.0,91943.0,0.33445223]
[1763632645629,0.69048315,91944.0,91943.0,0.33445223]
[1763632645812,0.36096315,91944.0,91943.0,0.33445223]
[1763632646012,0.46672315,91944.0,91943.0,0.33445223]
[1763632646627,0.36096315,91944.0,91943.0,0.33445223]
[1763632647317,0.60537315,91944.0,91943.0,0.33445223]
[1763632651632,0.71423615,91944.0,91943.0,0.22558803]
[1763632651931,0.60537315,91944.0,91943.0,0.22558803]
[1763632652930,0.60537315,91944.0,91943.0,0.22861803]
[1763632655432,0.245,91936.0,91935.0,0.24018]
[1763632655728,0.245,91936.0,91928.0,0.06501]
[1763632655729,0.245,91935.0,91934.0,0.1088743]
[1763632655930,0.245,91935.0,91934.0,0.35125233]
[1763632658034,0.245,91935.0,91934.0,0.11107233]
[1763632658333,0.245,91935.0,91934.0,0.00219803]
[1763632659717,0.245,91935.0,91929.0,0.2302306]
[1763632659718,0.245,91930.0,91929.0,0.2302306]
[1763632659934,0.24719803,91930.0,91929.0,0.3490606]
[1763632660527,0.24719803,91930.0,91929.0,0.24091267]
[1763632664828,0.24719803,91930.0,91925.0,0.00016315]
[1763632664829,0.245,91926.0,91925.0,0.00016315]
[1763632665019,0.245,91911.0,91910.0,0.31484]
[1763632665224,0.71375803,91911.0,91910.0,0.31484]
[1763632665827,0.82266013,91911.0,91910.0,0.31484]
[1763632666031,0.82266013,91911.0,91906.0,0.00012491]
[1763632666032,0.3539068,91907.0,91906.0,0.00012491]
[1763632666221,0.3539128,91902.0,91901.0,0.00016315]
[1763632666426,0.82267083,91902.0,91901.0,0.00016315]
[1763632667340,0.82279574,91902.0,91901.0,0.00016315]
[1763632667526,0.82279574,91902.0,91883.0,0.3608]
[1763632667527,0.353927,91890.0,91889.0,0.19601]
[1763632667725,0.3539305,91887.0,91886.0,0.12162208]
[1763632667921,0.35612853,91887.0,91886.0,0.12162208]
[1763632668636,0.35612853,91887.0,91886.0,0.00027208]
[1763632669037,0.24719803,91887.0,91886.0,0.12162208]
[1763632669337,0.24719803,91887.0,91886.0,0.24045208]
[1763632672533,0.00219803,91887.0,91886.0,0.24045208]
[1763632672733,0.10795803,91887.0,91886.0,0.24045208]
[1763632675643,0.10795803,91887.0,91886.0,0.24145208]
[1763632675840,0.10795803,91887.0,91886.0,0.24245208]
[1763632676239,0.10795803,91887.0,91886.0,0.24045208]
[1763632676541,0.00219803,91887.0,91886.0,0.24145208]
[1763632676929,0.10576,91887.0,91886.0,0.24145208]
[1763632677131,0.10576,91887.0,91886.0,0.24245208]
[1763632677428,0.00012491,91890.0,91889.0,0.24018]
[1763632677634,0.10588491,91890.0,91889.0,0.24018]
[1763632677935,0.00012491,91890.0,91889.0,0.24018]
[1763632678128,0.10588491,91890.0,91889.0,0.24018]
[1763632678332,0.00012491,91890.0,91889.0,0.24018]
[1763632678547,0.00016324,91896.0,91895.0,0.24018]
[1763632678741,0.00016324,91896.0,91895.0,0.3491011]
[1763632678945,0.1089023,91911.0,91901.0,0.349094]
[1763632679244,0.46656,91902.0,91901.0,0.349094]
[1763632679542,0.46875803,91902.0,91901.0,0.349094]
[1763632679738,0.36299803,91902.0,91901.0,0.349094]
[1763632680039,0.46875803,91902.0,91901.0,0.349094]
[1763632681737,0.36299803,91902.0,91901.0,0.349094]
[1763632681939,0.46875803,91902.0,91901.0,0.349094]
[1763632682333,0.69785803,91902.0,91901.0,0.349094]
[1763632684236,0.10795803,91902.0,91901.0,0.349094]
[1763632686941,0.00219803,91902.0,91901.0,0.709894]
[1763632687145,0.3608,91910.0,91909.0,0.3346545]
[1763632687341,0.00016324,91911.0,91910.0,0.22575]
[1763632687642,0.00016324,91911.0,91909.0,0.4697045]
[1763632687643,0.10576,91913.0,91912.0,0.29703]
[1763632687848,0.34560113,91927.0,91926.0,0.3346343]
[1763632688244,0.47834,91945.0,91944.0,0.29493]
[1763632688434,0.70327803,91945.0,91944.0,0.29493]
[1763632688638,0.70327803,91945.0,91944.0,0.22575]
[1763632689347,0.70327803,91945.0,91944.0,0.29703]
[1763632690450,0.70327803,91945.0,91944.0,0.22575]
[1763632694157,0.23452,91937.0,91936.0,0.22575]
[1763632694350,0.59751803,91937.0,91936.0,0.11001]
[1763632694856,0.59751803,91937.0,91936.0,0.22575]
[1763632695054,0.70327803,91937.0,91936.0,0.22575]
[1763632697756,0.4042925,91936.0,91935.0,0.00016315]
[1763632698060,0.23452,91921.0,91920.0,0.22575]
[1763632698256,0.23452,91921.0,91920.0,0.3346414]
[1763632698257,0.34243803,91921.0,91920.0,0.3346414]
[1763632699662,0.10791803,91921.0,91920.0,0.4059214]
[1763632700555,0.00219803,91921.0,91920.0,0.4059214]
[1763632700865,0.10791803,91921.0,91920.0,0.4059214]
[1763632701163,0.22545803,91921.0,91920.0,0.4059214]
[1763632701655,0.34243803,91921.0,91920.0,0.22575]
[1763632701862,0.00016315,91930.0,91929.0,0.3346308]
[1763632702259,0.59532,91945.0,91944.0,0.405893]
[1763632702562,0.70323803,91945.0,91944.0,0.405893]
[1763632708064,0.59751803,91945.0,91944.0,0.405893]
[1763632708267,0.70323803,91945.0,91944.0,0.405893]
[1763632709057,0.59751803,91945.0,91944.0,0.405893]
[1763632709258,0.70323803,91945.0,91944.0,0.405893]
[1763632715967,0.70323803,91945.0,91944.0,0.22575]
[1763632721879,0.70323803,91945.0,91944.0,0.29279]
[1763632724069,0.70323803,91945.0,91944.0,0.22575]
[1763632725969,0.59751803,91945.0,91944.0,0.22575]
[1763632726269,0.81205983,91945.0,91944.0,0.26484921]
[1763632727774,0.70319803,91945.0,91943.0,0.03909921]
[1763632728072,0.70319803,91945.0,91944.0,0.215503]
[1763632728378,0.70319803,91945.0,91944.0,0.324493]
[1763632742985,0.59751803,91945.0,91944.0,0.324493]
[1763632743286,0.70319803,91945.0,91944.0,0.324493]
[1763632744981,0.59751803,91945.0,91944.0,0.324493]
[1763632745180,0.70319803,91945.0,91944.0,0.324493]
[1763632748585,0.59751803,91945.0,91944.0,0.324493]
[1763632748786,0.70319803,91945.0,91944.0,0.324493]
[1763632754290,0.70319803,91945.0,91944.0,0.3833025]
[1763632759591,0.59751803,91945.0,91944.0,0.3833025]
[1763632759792,0.70315803,91945.0,91944.0,0.3833025]
[1763632761297,0.70315803,91945.0,91944.0,0.4421625]
[1763632762600,0.70315803,91945.0,91944.0,0.3833025]
[1763632764406,0.70315803,91945.0,91944.0,0.324493]
[1763632768608,0.18817,91939.0,91938.0,0.18639]
[1763632768803,0.29600803,91939.0,91938.0,0.2952602]
[1763632771206,0.29600803,91939.0,91938.0,0.18639]
[1763632771413,0.29600803,91939.0,91935.0,0.00016315]
[1763632771414,0.18468,91936.0,91935.0,0.09020315]
[1763632771614,0.54767803,91936.0,91935.0,0.00016315]
[1763632772209,0.54767803,91936.0,91935.0,0.03934461]
[1763632772611,0.1088878,91924.0,91923.0,0.1088874]
[1763632772812,0.64427803,91924.0,91923.0,0.2836974]
[1763632781334,0.55366803,91924.0,91923.0,0.2836974]
[1763632781632,0.64427803,91924.0,91923.0,0.2836974]
[1763632793139,0.00016315,91933.0,91932.0,0.22404]
[1763632793346,0.17564,91946.0,91945.0,0.2836719]
[1763632793537,0.28128,91946.0,91945.0,0.28586993]
[1763632793843,0.17564,91960.0,91959.0,0.2836553]
[1763632794044,0.28201267,91960.0,91959.0,0.28585333]
[1763632794440,0.17637267,91960.0,91959.0,0.28585333]
[1763632794640,0.28201267,91960.0,91959.0,0.28585333]
[1763632795544,0.28301267,91960.0,91959.0,0.28585333]
[1763632796344,0.28401267,91960.0,91959.0,0.28585333]
[1763632796936,0.17837267,91960.0,91959.0,0.28585333]
[1763632797243,0.28401267,91960.0,91959.0,0.28585333]
[1763632799641,0.28401267,91960.0,91959.0,0.17700803]
[1763632800250,0.3608,91975.0,91959.0,0.17700803]
[1763632800251,0.17564,91990.0,91985.0,0.04123]
[1763632800448,0.17637267,91990.0,91989.0,0.17700803]
[1763632800646,0.28197267,91990.0,91989.0,0.17700803]
[1763632801042,0.17637267,91990.0,91989.0,0.17700803]
[1763632801236,0.28197267,91990.0,91989.0,0.17700803]
[1763632801444,0.28197267,91990.0,91980.0,0.40219306]
[1763632801445,0.02916,91981.0,91980.0,0.00016306]
[1763632801745,0.13871197,91981.0,91980.0,0.00016306]
[1763632802339,0.10516,91963.0,91962.0,0.23641]
[1763632802545,0.10516,91962.0,91961.0,0.3608]
[1763632802740,0.10589267,91962.0,91961.0,0.54468803]
[1763632804652,0.10532306,91971.0,91970.0,0.2905223]
[1763632804957,0.21165573,91971.0,91970.0,0.18388803]
[1763632806140,0.00016306,91971.0,91970.0,0.18388803]
[1763632806451,0.05729616,92005.0,92004.0,0.18169]
[1763632806649,0.21620883,92005.0,92004.0,0.18388803]
[1763632807751,0.21720883,92005.0,92004.0,0.18388803]
[1763632808447,0.11160883,92005.0,92004.0,0.18388803]
[1763632808652,0.21816883,92005.0,92004.0,0.18388803]
[1763632809750,0.11260883,92005.0,92004.0,0.18388803]
[1763632809947,0.21816883,92005.0,92004.0,0.18388803]
[1763632810258,0.11300883,92005.0,92004.0,0.18388803]
[1763632810449,0.00744883,92005.0,92004.0,0.18388803]
[1763632810650,0.11300883,92005.0,92004.0,0.18388803]
[1763632811849,0.00671616,92005.0,92004.0,0.18388803]
[1763632812351,0.00016306,92014.0,92013.0,0.2904714]
[1763632812555,0.00016306,92014.0,92013.0,0.18388803]
[1763632812556,0.10645573,92014.0,92013.0,0.18388803]
[1763632813655,0.10572306,92014.0,92013.0,0.18388803]
[1763632813856,0.00016306,92014.0,92013.0,0.18388803]
[1763632814162,0.00116306,92014.0,92013.0,0.18388803]
[1763632814861,0.10805573,92014.0,92013.0,0.18388803]
[1763632815056,0.46885573,92014.0,92013.0,0.09924803]
[1763632815356,0.57663593,92014.0,92013.0,0.09924803]
[1763632815863,0.57441573,92014.0,92013.0,0.18388803]
[1763632818065,0.57441573,92014.0,92013.0,0.00219803]
[1763632818764,0.10516,92003.0,92002.0,0.2904841]
[1763632819065,0.21141267,92003.0,92002.0,0.29268213]
[1763632819363,0.10625267,92003.0,92002.0,0.29268213]
[1763632820763,0.05258,92012.0,92011.0,0.2904738]
[1763632820958,0.15883267,92012.0,92011.0,0.29267183]
[1763632821157,0.21141267,92012.0,92011.0,0.29267183]
[1763632821359,0.10625267,92012.0,92011.0,0.29267183]
[1763632821659,0.00016306,92014.0,92013.0,0.18169]
[1763632821868,0.10568306,92014.0,92013.0,0.18388803]
[1763632822861,0.10668306,92014.0,92013.0,0.18388803]
[1763632824358,0.10841573,92014.0,92013.0,0.18388803]
[1763632827670,0.00289573,92014.0,92013.0,0.18388803]
[1763632830470,0.00216306,92014.0,92013.0,0.18388803]
[1763632833070,0.16355593,92014.0,92013.0,0.18388803]
[1763632833570,0.16355593,92014.0,92013.0,0.00219803]
[1763632834277,0.03121573,92014.0,92013.0,0.17850803]
[1763632834575,0.10841573,92014.0,92013.0,0.17850803]
[1763632835367,0.15553573,92014.0,92013.0,0.17850803]
[1763632835566,0.15553573,92014.0,92013.0,0.08884803]
[1763632835767,0.15553573,92014.0,92013.0,0.17850803]
[1763632839182,0.15553573,92014.0,92013.0,0.28728943]
[1763632842483,0.00289573,92014.0,92013.0,0.28728943]
[1763632842683,0.10837573,92014.0,92013.0,0.28728943]
[1763632842982,0.00289573,92014.0,92013.0,0.28728943]
[1763632843170,0.10837573,92014.0,92013.0,0.28728943]
[1763632843370,0.00216306,92014.0,92013.0,0.28728943]
[1763632844580,0.00289573,92014.0,92013.0,0.28728943]
[1763632844883,0.00289573,92014.0,92013.0,0.17850803]
[1763632844884,0.05001573,92014.0,92013.0,0.17850803]
[1763632845078,0.05001573,92014.0,92013.0,0.00219803]
[1763632845784,0.05001573,92014.0,92013.0,0.08884803]
[1763632845983,0.05001573,92014.0,92013.0,0.17850803]
[1763632846480,0.41081573,92014.0,92013.0,0.17850803]
[1763632853287,0.40965267,92014.0,92013.0,0.17850803]
[1763632853491,0.3846892,92014.0,92013.0,0.17850803]
[1763632855795,0.42376404,92014.0,92013.0,0.17850803]
[1763632857001,0.42376404,92014.0,92013.0,0.28728943]
[1763632857298,0.3846892,92014.0,92013.0,0.28728943]
[1763632858199,0.3846892,92014.0,92013.0,0.17850803]
[1763632861501,0.35856233,92014.0,92013.0,0.17850803]
[1763632862295,0.39763717,92014.0,92013.0,0.17850803]
[1763632862887,0.39763717,92014.0,92008.0,0.23282]
[1763632863088,0.1087862,92009.0,92008.0,0.23282]
[1763632863297,0.2142662,92009.0,92008.0,0.23282]
[1763632864901,0.2142662,92009.0,92004.0,0.0563]
[1763632864902,0.1087909,92005.0,92004.0,0.2284]
[1763632866002,0.4695909,92005.0,92004.0,0.2284]
[1763632866395,0.4695909,92005.0,92004.0,0.23059803]
[1763632868898,0.4695909,92005.0,92004.0,0.2284]
[1763632871099,0.4705909,92005.0,92004.0,0.2284]
[1763632872712,0.4695909,92005.0,92004.0,0.2284]
[1763632875204,0.4695909,92005.0,91997.0,0.03895356]
[1763632875399,0.3608,92005.0,92004.0,0.1721]
[1763632875605,0.46628,92005.0,92004.0,0.1721]
[1763632876712,0.44014995,92005.0,92004.0,0.1721]
[1763632877606,0.44014995,92005.0,92004.0,0.17429803]
[1763632887817,0.33466995,92005.0,92004.0,0.17429803]
[1763632888018,0.44010995,92005.0,92004.0,0.17429803]
[1763632892024,0.44010995,92005.0,92004.0,0.28309013]
[1763632892223,0.44010995,92005.0,92004.0,0.33024013]
[1763632893318,0.44010995,92005.0,92004.0,0.22144803]
[1763632894922,0.44010995,92005.0,92004.0,0.33024013]
[1763632895222,0.44010995,92005.0,92004.0,0.22144803]
[1763632897516,0.03906461,92005.0,92004.0,0.22144803]
[1763632897722,0.03906461,92009.0,92007.0,0.1087885]
[1763632897919,0.03906461,92010.0,92009.0,0.1087862]
[1763632898225,0.14450461,92010.0,92009.0,0.26477423]
[1763632898428,0.10544,92010.0,92009.0,0.26477423]
[1763632899425,0.214225,92010.0,92009.0,0.15598803]
[1763632899814,0.108785,92010.0,92009.0,0.15598803]
[1763632900018,0.214225,92010.0,92009.0,0.15598803]
[1763632902129,0.214225,92010.0,92009.0,0.15379]
[1763632905431,0.214225,92010.0,92009.0,0.15598803]
[1763632908738,0.10544,92010.0,92009.0,0.26477423]
[1763632908929,0.10544,92010.0,92009.0,0.15598803]
[1763632912539,0.03906461,92022.0,92021.0,0.15379]
[1763632912844,0.00016289,92023.0,92022.0,0.15598803]
[1763632913537,0.10556289,92023.0,92022.0,0.15598803]
[1763632914442,0.10656289,92023.0,92022.0,0.15598803]
[1763632914741,0.10756289,92023.0,92022.0,0.15598803]
[1763632916328,0.10656289,92023.0,92022.0,0.15598803]
[1763632916540,0.10556289,92023.0,92022.0,0.15598803]
[1763632919042,0.10556289,92023.0,92022.0,0.26475883]
[1763632920241,0.00016289,92023.0,92022.0,0.26475883]
[1763632920442,0.21433249,92023.0,92022.0,0.15598803]
[1763632920744,0.108772,92021.0,92020.0,0.04715]
[1763632921148,0.108772,92021.0,92020.0,0.20313803]
[1763632921342,0.14783661,92021.0,92020.0,0.20313803]
[1763632923042,0.108772,92021.0,92020.0,0.20313803]
[1763632924243,0.214172,92021.0,92020.0,0.20313803]
[1763632924639,0.214172,92021.0,92020.0,0.20094]
[1763632926238,0.25323661,92021.0,92020.0,0.20094]
[1763632926944,0.25323661,92021.0,92020.0,0.20313803]
[1763632927343,0.14446461,92021.0,92020.0,0.20313803]
[1763632927542,0.1054,92021.0,92020.0,0.20313803]
[1763632928046,0.00016289,92023.0,92022.0,0.14446]
[1763632928350,0.10556289,92023.0,92022.0,0.14665803]
[1763632930843,0.00016289,92023.0,92022.0,0.14665803]
[1763632931048,0.10552289,92023.0,92022.0,0.14665803]
[1763632932353,0.00016289,92023.0,92022.0,0.14665803]
[1763632932554,0.10552289,92023.0,92022.0,0.14665803]
[1763632934958,0.00016289,92023.0,92022.0,0.14665803]
[1763632935147,0.10552289,92023.0,92022.0,0.14665803]
[1763632936852,0.00016289,92023.0,92022.0,0.14665803]
[1763632937051,0.03906461,92027.0,92022.0,0.14665803]
[1763632937247,0.0002716,92046.0,92022.0,0.14665803]
[1763632937248,0.10536,92035.0,92034.0,0.1087566]
[1763632937447,0.0002716,92046.0,92045.0,0.18581]
[1763632937648,0.1056316,92046.0,92045.0,0.18800803]
[1763632938148,0.0002716,92046.0,92045.0,0.18800803]
[1763632938348,0.1056316,92046.0,92045.0,0.18800803]
[1763632939157,0.1066316,92046.0,92045.0,0.18800803]
[1763632939456,0.1076316,92046.0,92045.0,0.18800803]
[1763632940353,0.4684316,92046.0,92045.0,0.11521803]
[1763632940751,0.4684316,92046.0,92045.0,0.18800803]
[1763632942547,0.4684316,92046.0,92045.0,0.04135]
[1763632942747,0.1087531,92037.0,92036.0,0.07183297]
[1763632942951,0.1087531,92037.0,92036.0,0.146821]
[1763632942952,0.2141131,92037.0,92036.0,0.146821]
[1763632944254,0.0022716,92046.0,92045.0,0.2532036]
[1763632944460,0.1056316,92046.0,92045.0,0.25540163]
[1763632944965,0.0002716,92046.0,92045.0,0.25540163]
[1763632945261,0.3608,92068.0,92067.0,0.14446]
[1763632945459,0.46616,92068.0,92067.0,0.14665803]
[1763632946358,0.46616,92068.0,92067.0,0.00219803]
[1763632946566,0.1087271,92059.0,92058.0,0.07183297]
[1763632946749,0.2140871,92059.0,92058.0,0.146821]
[1763632946950,0.10536,92059.0,92058.0,0.146821]
[1763632948164,0.10636,92059.0,92058.0,0.146821]
[1763632948461,0.10736,92059.0,92058.0,0.146821]
[1763632948767,0.10732,92059.0,92058.0,0.146821]
[1763632951064,0.002,92059.0,92058.0,0.146821]
[1763632951363,0.10732,92059.0,92058.0,0.146821]
[1763632952254,0.002,92059.0,92058.0,0.146821]
[1763632952462,0.3608,92068.0,92067.0,0.2358276]
[1763632952763,0.03929,92099.0,92085.0,0.03852]
[1763632952965,0.23705149,92086.0,92085.0,0.14941443]
[1763632953357,0.23705149,92086.0,92085.0,0.51021443]
[1763632953958,0.23905149,92086.0,92085.0,0.51021443]
[1763632954159,0.00227149,92086.0,92085.0,0.51021443]
[1763632954354,0.10659149,92086.0,92085.0,0.51021443]
[1763632954573,0.23805149,92086.0,92085.0,0.51021443]
[1763632954970,0.23805149,92086.0,92085.0,0.40151803]
[1763632955163,0.03929,92064.0,92063.0,0.12711]
[1763632955370,0.3847912,92064.0,92063.0,0.12930803]
[1763632955568,0.27607,92064.0,92063.0,0.12930803]
[1763632956974,0.27607,92064.0,92063.0,0.13030803]
[1763632957571,0.27607,92064.0,92063.0,0.12930803]
[1763632958468,0.27607,92064.0,92063.0,0.00219803]
[1763632959767,0.2401871,92059.0,92058.0,0.00016297]
[1763632960865,0.2401871,92059.0,92058.0,0.002361]
[1763632962462,0.2401871,92059.0,92058.0,0.00016297]
[1763632966274,0.13146,92059.0,92058.0,0.00016297]
[1763632967871,0.1086902,92091.0,92058.0,0.00016297]
[1763632967872,0.05819761,92080.0,92074.0,0.2358194]
[1763632968070,0.04103622,92077.0,92076.0,0.12711]
[1763632968267,0.03929,92099.0,92085.0,0.14941443]
[1763632968467,0.10555149,92086.0,92085.0,0.51021443]
[1763632969074,0.16767149,92086.0,92085.0,0.51021443]
[1763632969269,0.10555149,92086.0,92085.0,0.51021443]
[1763632970775,0.23801149,92086.0,92085.0,0.41144782]
[1763632970979,0.23801149,92086.0,92076.0,0.3608]
[1763632970980,0.001,92075.0,92072.0,0.13790079]
[1763632971278,0.13146,92074.0,92073.0,0.04071803]
[1763632971977,0.13146,92074.0,92073.0,0.00219803]
[1763632973877,0.13146,92069.0,92068.0,0.1087155]
[1763632974182,0.13146,92069.0,92068.0,0.11091353]
[1763632974880,0.13146,92069.0,92068.0,0.11091443]
[1763632976586,0.2401753,92069.0,92068.0,0.00219803]
[1763632976973,0.13146,92069.0,92068.0,0.00219803]
[1763632977582,0.2401764,92068.0,92067.0,0.25766]
[1763632977777,0.13146,92059.0,92058.0,0.00016297]
[1763632977981,0.23674,92059.0,92058.0,0.00016297]
[1763632982579,0.23674,92059.0,92058.0,0.10889127]
[1763632982889,0.23674,92059.0,92058.0,0.1110893]
[1763632983190,0.23774,92059.0,92058.0,0.1110893]
[1763632983374,0.23774,92059.0,92058.0,0.002361]
[1763632983782,0.23674,92059.0,92058.0,0.00016297]
[1763632984183,0.59754,92059.0,92058.0,0.00016297]
[1763632984394,0.59754,92059.0,92033.0,0.3608]
[1763632984395,0.14123,92034.0,92033.0,0.3608]
[1763632984592,0.14123,92027.0,92026.0,0.00219803]
[1763632985591,0.14123,92027.0,92026.0,0.08308803]
[1763632985977,0.04815,92040.0,92026.0,0.08308803]
[1763632985978,1e-08,92049.0,92047.0,0.14903]
[1763632986187,0.04815,92072.0,92048.0,0.00219803]
[1763632986188,0.11803,92064.0,92048.0,0.00219803]
[1763632986390,0.14123,92049.0,92048.0,0.00219803]
[1763632986585,0.22447,92049.0,92048.0,0.11093813]
[1763632986789,0.18938,92048.0,92047.0,0.1087411]
[1763632987089,0.18938,92048.0,92047.0,0.47173913]
[1763632987281,0.29506,92048.0,92047.0,0.47173913]
[1763632988989,0.29506,92048.0,92047.0,0.36299803]
[1763632991885,0.29506,92048.0,92047.0,0.3608]
[1763632992085,0.29506,92048.0,92038.0,0.36096297]
[1763632992086,0.2499807,92039.0,92038.0,0.00016297]
[1763632993081,0.2499913,92030.0,92029.0,0.3608]
[1763632993281,0.3556313,92030.0,92029.0,0.3608]
[1763632993487,0.24687,92030.0,92029.0,0.3608]
[1763632994689,0.24687,92030.0,92029.0,0.51202803]
[1763632994884,0.24687,92030.0,92029.0,0.62079053]
[1763632996705,0.14123,92030.0,92029.0,0.51202803]
[1763632996988,0.24687,92030.0,92029.0,0.51202803]
[1763632997396,0.24687,92030.0,92029.0,0.62079053]
[1763632997896,0.24687,92030.0,92029.0,0.51202803]
[1763633000393,0.24687,92030.0,92029.0,0.00219803]
[1763633000701,0.24687,92030.0,92015.0,0.02921888]
[1763633000702,0.1088316,91971.0,91968.0,0.04948]
[1763633000895,0.04475803,91969.0,91968.0,0.13110267]
[1763633001093,0.04475803,91969.0,91968.0,0.13037]
[1763633001691,0.06138,91967.0,91960.0,0.04948]
[1763633001894,0.06138,91953.0,91952.0,0.19851]
[1763633002202,0.16972056,91953.0,91952.0,0.19851]
[1763633002686,0.89132056,91953.0,91952.0,0.19851]
[1763633003597,0.89132056,91953.0,91952.0,0.20251]
[1763633004392,0.78528056,91953.0,91952.0,0.20251]
[1763633004700,1.00021296,91953.0,91952.0,0.20551]
[1763633005287,1.00021296,91953.0,91943.0,0.0001631]
[1763633005493,1.00021296,91953.0,91910.0,0.04948]
[1763633005494,0.06138,91927.0,91910.0,0.04948]
[1763633005698,0.16965803,91927.0,91910.0,0.04948]
[1763633005899,0.16976427,91927.0,91910.0,0.04948]
[1763633006398,0.06138,91911.0,91910.0,0.19851]
[1763633006602,0.36309187,91911.0,91910.0,0.30814597]
[1763633006794,0.36309187,91911.0,91910.0,0.19924267]
[1763633007095,0.46925187,91911.0,91910.0,0.19924267]
[1763633008403,0.80374187,91911.0,91910.0,0.20024267]
[1763633008600,0.69758187,91911.0,91910.0,0.20024267]
[1763633008898,0.80374187,91911.0,91910.0,0.20224267]
[1763633009092,0.80374187,91911.0,91910.0,0.20151]
[1763633009294,0.80374187,91911.0,91910.0,0.15203]
[1763633009497,0.80374187,91911.0,91910.0,0.08389]
[1763633010098,1.16454187,91911.0,91910.0,0.08389]
[1763633010399,0.33449,91908.0,91901.0,0.00016319]
[1763633010599,0.4434028,91902.0,91901.0,0.00016319]
[1763633010799,0.80640083,91902.0,91901.0,0.00016319]
[1763633011294,0.91256083,91902.0,91901.0,0.00016319]
[1763633011603,0.69748803,91902.0,91901.0,0.32922319]
[1763633011795,0.64255734,91902.0,91901.0,0.32995586]
[1763633011998,0.64255734,91902.0,91901.0,0.33095586]
[1763633013092,0.64255734,91902.0,91901.0,0.33295586]
[1763633014593,0.91829014,91902.0,91901.0,0.16316319]
[1763633015006,0.36310734,91902.0,91901.0,0.32752586]
[1763633015304,0.36310734,91902.0,91901.0,0.40389586]
[1763633015305,0.10616,91902.0,91901.0,0.40389586]
[1763633015502,0.1088947,91918.0,91910.0,0.02551]
[1763633015803,0.00219803,91911.0,91910.0,0.337]
[1763633016002,0.00219803,91911.0,91910.0,0.33773267]
[1763633016502,0.33373511,91911.0,91910.0,0.33773267]
[1763633016705,0.69453511,91911.0,91910.0,0.33873267]
[1763633017008,0.69453511,91911.0,91910.0,0.00173267]
[1763633017397,0.33144,91902.0,91901.0,0.17453319]
[1763633017692,0.80063803,91902.0,91901.0,0.33889586]
[1763633017897,0.80063803,91902.0,91901.0,0.33789586]
[1763633019008,0.80073511,91902.0,91901.0,0.00016319]
[1763633019214,0.80073511,91902.0,91901.0,0.00216319]
[1763633020807,0.69453511,91902.0,91901.0,0.00216319]
[1763633021006,0.80073511,91902.0,91901.0,0.00216319]
[1763633023616,0.4403706,91887.0,91886.0,0.00027208]
[1763633023810,0.54881137,91887.0,91886.0,0.00027208]
[1763633024706,0.43988077,91887.0,91886.0,0.44693645]
[1763633024900,0.43988077,91887.0,91886.0,0.33800475]
[1763633025214,0.10844077,91887.0,91886.0,0.34000475]
[1763633026010,0.00016319,91896.0,91895.0,0.4459211]
[1763633026205,0.10852122,91896.0,91895.0,0.44665377]
[1763633026610,0.10852122,91896.0,91895.0,0.33773267]
[1763633026803,0.38206112,91896.0,91895.0,0.33773267]
[1763633027311,0.54888112,91896.0,91895.0,0.33773267]
[1763633028102,0.54888112,91896.0,91895.0,0.33873267]
[1763633028308,0.54888112,91896.0,91895.0,0.00173267]
[1763633029104,0.54888112,91896.0,91895.0,0.001]
[1763633029908,0.4403706,91887.0,91886.0,0.00027208]
[1763633030103,0.43979803,91887.0,91886.0,0.00027208]
[1763633030303,0.43979803,91887.0,91886.0,0.17364208]
[1763633030514,0.43979803,91887.0,91886.0,0.17437475]
[1763633031011,0.43979803,91887.0,91886.0,0.33800475]
[1763633031600,0.43979803,91887.0,91886.0,0.34000475]
[1763633031810,0.43979803,91887.0,91886.0,0.17637475]
[1763633032010,0.43979803,91887.0,91886.0,0.00300475]
[1763633032205,0.43979803,91887.0,91886.0,0.00227208]
[1763633032411,0.46581439,91887.0,91886.0,0.00227208]
[1763633033914,0.46681439,91887.0,91886.0,0.00227208]
[1763633034110,0.19383439,91887.0,91886.0,0.34000475]
[1763633034306,0.02921439,91887.0,91886.0,0.34000475]
[1763633034501,0.02821439,91887.0,91886.0,0.34000475]
[1763633034711,0.10831803,91887.0,91886.0,0.33800475]
[1763633035310,0.13436328,91887.0,91886.0,0.33800475]
[1763633036519,0.13436328,91887.0,91886.0,0.33900475]
[1763633038018,0.13436328,91887.0,91886.0,0.33800475]
[1763633038908,0.13436328,91887.0,91886.0,0.33900475]
[1763633040219,0.29898328,91887.0,91886.0,0.33900475]
[1763633040619,0.13436328,91887.0,91877.0,0.00016319]
[1763633040820,0.13436328,91887.0,91850.0,0.14595721]
[1763633040821,0.1089556,91866.0,91860.0,0.1089617]
[1763633041010,0.33363803,91861.0,91860.0,0.337]
[1763633041211,0.33363803,91861.0,91846.0,0.0002722]
[1763633041212,0.33144,91847.0,91846.0,0.0002722]
[1763633041527,0.33144,91847.0,91833.0,0.1089934]
[1763633041528,0.33144,91844.0,91833.0,0.1089934]
[1763633041713,0.46570824,91844.0,91843.0,0.33712195]
[1763633042222,0.83055824,91844.0,91843.0,0.33785462]
[1763633042521,0.83055824,91844.0,91843.0,0.33712195]
[1763633042712,0.80460803,91844.0,91843.0,0.33712195]
[1763633042907,0.83052387,91844.0,91843.0,0.33712195]
[1763633043110,0.83052387,91844.0,91843.0,0.00012195]
[1763633043311,0.80460803,91844.0,91843.0,0.00012195]
[1763633043814,0.80460803,91844.0,91843.0,0.34556195]
[1763633044222,0.83049944,91844.0,91843.0,0.34656195]
[1763633044519,0.80460803,91844.0,91843.0,0.34656195]
[1763633045123,0.80460803,91844.0,91843.0,0.34729462]
[1763633045515,0.36299803,91844.0,91843.0,0.34729462]
[1763633045710,0.10612,91844.0,91843.0,0.34729462]
[1763633045916,0.3608,91852.0,91851.0,0.4544132]
[1763633046112,0.46696,91852.0,91851.0,0.45661123]
[1763633046512,0.00016328,91853.0,91852.0,0.34544]
[1763633046713,0.10632328,91853.0,91852.0,0.34763803]
[1763633047620,0.10628328,91853.0,91852.0,0.34763803]
[1763633047929,0.10628328,91853.0,91852.0,0.34863803]
[1763633048620,0.10628328,91853.0,91852.0,0.34763803]
[1763633048825,0.10628328,91853.0,91852.0,0.34863803]